fUST/lending_fUST_20260410
["ID","MTS","AMOUNT","RATE_DAILY","PERIOD"]
[420188148,1775764239348,-1545.35456018,0.00018541,2]
[420188149,1775764239377,-1545.35456018,0.00018541,2]
[420188150,1775764239386,-1545.35456018,0.00018541,2]
[420188151,1775764239395,-1545.35456018,0.00018541,2]
[420188152,1775764239405,-1545.35456018,0.00018541,2]
[420188153,1775764239414,-1545.35456018,0.00018541,2]
[420188154,1775764239423,-1545.35456018,0.00018541,2]
[420188155,1775764239432,-1545.35456018,0.00018541,2]
[420188156,1775764239441,-1545.35456018,0.00018541,2]
[420188157,1775764239450,-1565.29461903,0.00018541,2]
[420188158,1775764239460,-1565.29461903,0.00018541,2]
[420188159,1775764239469,-1565.29461903,0.00018541,2]
[420188160,1775764239478,-192093.46789051,0.00018542,2]
[420188205,1775764243478,-2244.0,0.00018542,2]
[420188287,1775764248393,-300.0,0.00018542,2]
[420188289,1775764248487,-25955.98435928,0.00018542,2]
[420188290,1775764248496,-3914.59165882,0.00018542,2]
[420188291,1775764248670,-3829.48391075,0.00018542,2]
[420188298,1775764871767,-348.90801305,0.00012,2]
[420188299,1775764888478,-740.47799997,0.00013699,2]
[420188300,1775764917685,-89.38601302,0.00013699,2]
[420188301,1775764917722,-170.13598701,0.00013699,2]
[420188302,1775764917770,-89.38601302,0.0001485,2]
[420188335,1775765403120,155.2,9e-05,2]
[420188361,1775765432947,-155.2,9.1e-05,2]
[420188362,1775765432958,-155.2,9.1e-05,2]
[420188363,1775765432972,-155.2,9.2e-05,2]
[420188364,1775765432982,-111.03314209,9.3e-05,2]
[420188365,1775765432995,-44.16685791,9.3e-05,2]
[420188366,1775765433006,-155.2,9.3e-05,2]
[420188367,1775765433017,-155.2,9.4e-05,2]
[420188368,1775765433027,-155.2,9.4e-05,2]
[420188369,1775765433037,-155.2,9.5e-05,2]
[420188370,1775765433048,-155.2,9.6e-05,2]
[420188371,1775765433058,-155.2,9.6e-05,2]
[420188372,1775765433098,-155.2,9.7e-05,2]
[420188373,1775765433108,-155.2,9.8e-05,2]
[420188374,1775765433118,-155.2,9.8e-05,2]
[420188375,1775765433128,-155.2,9.9e-05,2]
[420188376,1775765433140,-177.0,0.0001115,2]
[420188377,1775765433149,-204.0,0.0001315,2]
[420188378,1775765433186,-1000.0,0.00013699,2]
[420188379,1775765433197,-565.55344095,0.00015,2]
[420188380,1775765433207,-231.0,0.0001515,2]
[420188381,1775765433218,-334.51959217,0.00015369,2]
[420188382,1775765433230,-300.0,0.00016438,2]
[420188383,1775765433240,-128.80430597,0.0001715,2]
[420188384,1775765433271,-129.19569403,0.0001715,2]
[420188385,1775765433281,-330.0,0.00017964,2]
[420188386,1775765433292,-597.0,0.0001824,2]
[420188387,1775765433302,-4006.3534401,0.00018241,2]
[420188687,1775765442283,-67562.61205787,0.00018241,2]
[420188773,1775765443648,-1972.0,0.00018241,2]
[420189022,1775765446657,-26630.94429254,0.00018241,2]
[420189024,1775765446668,-802.0264,0.00018241,2]
[420190126,1775766632456,-1000.0,0.00013699,2]
[420190129,1775766632486,-1200.0,0.00014174,2]
[420190131,1775766632496,-1122.18304025,0.00014175,2]
[420190133,1775766632504,-623.88243318,0.00014175,2]
[420190135,1775766632518,-615.70868799,0.00014175,2]
[420190137,1775766632527,-1172.14115259,0.00014951,2]
[420190138,1775766632536,-732.39760235,0.00014985,2]
[420190141,1775766632581,-1470.95629308,0.00014985,2]
[420190143,1775766632590,-177.0,0.00015937,2]
[420190145,1775766632599,-300.0,0.00016438,2]
[420190147,1775766632612,-1161.52374636,0.00017369,2]
[420190151,1775766632625,-1388.61658914,0.00017369,2]
[420190153,1775766632638,-303.85382204,0.00017614,2]
[420190156,1775766632647,-204.0,0.00017937,2]
[420190158,1775766632657,-180.08463978,0.00018218,2]
[420190160,1775766632668,-7339.7140072,0.00018342,2]
[420190162,1775766632678,-1525.9343775,0.00018342,2]
[420190164,1775766632690,-371.48439093,0.00018342,2]
[420190166,1775766632705,-961.04889694,0.00018342,2]
[420190171,1775766632742,-193.40108933,0.00018342,2]
[420190173,1775766632752,-2984.4571002,0.00018342,2]
[420190175,1775766632762,-168.0,0.00018351,2]
[420190177,1775766632781,-168.13987097,0.00018355,18]
[420190181,1775766632811,-53.75245689,0.00018355,18]
[420190183,1775766632821,-156.20769032,0.00018355,18]
[420190185,1775766632830,-500.0,0.00018399,2]
[420190187,1775766632839,-516.92524257,0.00018399,2]
[420190189,1775766632852,-500.0,0.00018399,2]
[420190192,1775766632878,-500.0,0.00018399,2]
[420190193,1775766632888,-484.54691901,0.00018399,2]
[420190196,1775766632899,-15.45308099,0.00018399,2]
[420190198,1775766632908,-229.74187984,0.00018399,2]
[420190200,1775766632917,-500.0,0.00018399,2]
[420190202,1775766632926,-500.0,0.00018399,2]
[420190204,1775766632935,-6457.91618782,0.000184,2]
[420190242,1775766641293,-7.79957946,0.000184,2]
[420190243,1775766641302,-992.20042054,0.000184,2]
[420190244,1775766641312,-71293.79648919,0.000184,2]
[420190245,1775766641321,-340.93044584,0.00018415,2]
[420190246,1775766641329,-340.93044583,0.00018436,2]
[420190247,1775766641337,-340.93044583,0.00018458,2]
[420190248,1775766641346,-340.93044583,0.00018479,2]
[420190249,1775766641355,-340.93044583,0.000185,2]
[420190250,1775766641364,-5727.558198,0.00018515,2]
[420190251,1775766641372,-613.25413725,0.00018541,2]
[420190252,1775766641380,-187.20409595,0.00018541,2]
[420190253,1775766641390,-200.0,0.00018568,2]
[420190254,1775766641398,-500.0,0.00018573,2]
[420190255,1775766641406,-187.49842674,0.00018573,2]
[420190256,1775766641415,-605.45,0.00018588,3]
[420190257,1775766641424,-201.81,0.0001859,3]
[420190258,1775766641457,-526.43321248,0.00018596,2]
[420190259,1775766641465,-289.3899,0.00018598,2]
[420190260,1775766641474,-660082.71,0.000186,30]
[420190261,1775766641482,-590.9,0.000186,2]
[420190262,1775766641491,-590.9,0.000186,2]
[420190263,1775766641500,-1087.63,0.000186,2]
[420190264,1775766641508,-877.154677,0.00018648,2]
[420190265,1775766641517,-258.54999738,0.00018698,2]
[420190266,1775766641549,-600.0,0.00018809,2]
[420190267,1775766641559,-329.0,0.00018856,2]
[420190268,1775766641568,-154.14158583,0.00018903,18]
[420190269,1775766641577,-200.0,0.00018903,18]
[420190270,1775766641587,-154.61950992,0.00018903,18]
[420190271,1775766641596,-154.03599555,0.00018903,18]
[420190272,1775766641606,-155.7883361,0.00018903,18]
[420190273,1775766641615,-205.3201709,0.00018903,18]
[420190274,1775766641624,-999.38,0.00019,2]
[420190275,1775766641634,-199.87,0.00019,2]
[420190276,1775766641643,-1000.0,0.00019121,2]
[420190277,1775766641652,-564.98652391,0.00019177,18]
[420190278,1775766641661,-564.9865239,0.00019177,18]
[420190279,1775766641670,-564.9865239,0.00019177,18]
[420190280,1775766641680,-564.9865239,0.00019177,18]
[420190281,1775766641689,-564.9865239,0.00019177,18]
[420190282,1775766641698,-564.9865239,0.00019177,18]
[420190283,1775766641711,-160.0,0.00019178,18]
[420190284,1775766641742,-160.0,0.00019178,18]
[420190285,1775766641751,-3110.0375,0.00019178,18]
[420190286,1775766641761,-3110.0375,0.00019178,18]
[420190287,1775766641770,-500.0,0.00019178,18]
[420190288,1775766641780,-500.0,0.00019178,18]
[420190289,1775766641790,-500.0,0.00019178,18]
[420190290,1775766641816,-500.0,0.00019178,18]
[420190291,1775766641828,-500.0,0.00019178,18]
[420190292,1775766641837,-500.0,0.00019178,18]
[420190293,1775766641846,-683.85,0.00019178,18]
[420190294,1775766641856,-500.0,0.00019178,18]
[420190295,1775766641865,-500.0,0.00019178,18]
[420190296,1775766641877,-500.0,0.00019178,18]
[420190297,1775766641889,-644.38,0.00019178,18]
[420190299,1775766641921,-500.0,0.00019178,18]
[420190301,1775766641931,-500.0,0.00019178,18]
[420190303,1775766641940,-500.0,0.00019178,18]
[420190305,1775766641949,-500.0,0.00019178,18]
[420190307,1775766641964,-500.0,0.00019178,18]
[420190309,1775766641973,-500.0,0.00019178,18]
[420190311,1775766641989,-500.0,0.00019178,18]
[420190313,1775766641998,-587.82127621,0.00019178,18]
[420190315,1775766642007,-500.0,0.00019178,18]
[420190317,1775766642018,-500.0,0.00019178,18]
[420190319,1775766642027,-500.0,0.00019178,18]
[420190321,1775766642036,-526.96,0.00019178,18]
[420190322,1775766642054,-500.0,0.00019178,18]
[420190324,1775766642081,-500.0,0.00019178,18]
[420190326,1775766642091,-500.0,0.00019178,18]
[420190327,1775766642101,-500.0,0.00019178,18]
[420190329,1775766642110,-500.0,0.00019178,18]
[420190330,1775766642121,-500.0,0.00019178,18]
[420190331,1775766642131,-500.0,0.00019178,18]
[420190332,1775766642185,-500.0,0.00019178,18]
[420190333,1775766642195,-500.0,0.00019178,18]
[420190334,1775766642204,-500.0,0.00019178,18]
[420190335,1775766642215,-500.0,0.00019178,18]
[420190336,1775766642227,-500.0,0.00019178,18]
[420190337,1775766642236,-829.51,0.00019178,18]
[420190338,1775766642245,-500.0,0.00019178,18]
[420190339,1775766642258,-554.19,0.00019178,18]
[420190340,1775766642267,-500.0,0.00019178,18]
[420190342,1775766642276,-500.0,0.00019178,18]
[420190343,1775766642290,-500.0,0.00019178,18]
[420190344,1775766642299,-533.08,0.00019178,18]
[420190346,1775766642308,-500.0,0.00019178,18]
[420190348,1775766642320,-500.0,0.00019178,18]
[420190366,1775766642532,-500.0,0.00019178,18]
[420190368,1775766642546,-500.0,0.00019178,7]
[420190370,1775766642556,-547.55,0.00019178,18]
[420190372,1775766642565,-889.68,0.00019178,18]
[420190374,1775766642579,-552.09,0.00019178,18]
[420190376,1775766642588,-804.52,0.00019178,18]
[420190378,1775766642597,-500.0,0.00019178,18]
[420190380,1775766642607,-500.0,0.00019178,18]
[420190382,1775766642617,-500.0,0.00019178,18]
[420190384,1775766642626,-500.0,0.00019178,18]
[420190386,1775766642635,-500.0,0.00019178,18]
[420190388,1775766642664,-500.0,0.00019178,18]
[420190390,1775766642675,-500.0,0.00019178,18]
[420190392,1775766642684,-500.0,0.00019178,18]
[420190394,1775766642694,-500.0,0.00019178,18]
[420190396,1775766642703,-500.0,0.00019178,18]
[420190398,1775766642712,-500.0,0.00019178,18]
[420190400,1775766642722,-500.0,0.00019178,18]
[420190402,1775766642731,-500.0,0.00019178,18]
[420190404,1775766642740,-500.0,0.00019178,18]
[420190406,1775766642751,-500.0,0.00019178,18]
[420190408,1775766642760,-500.0,0.00019178,18]
[420190410,1775766642770,-500.0,0.00019178,18]
[420190412,1775766642779,-1468.21,0.00019178,18]
[420190414,1775766642797,-500.0,0.00019178,18]
[420190416,1775766642820,-500.0,0.00019178,18]
[420190418,1775766642829,-558.75,0.00019178,18]
[420190421,1775766642839,-500.0,0.00019178,18]
[420190422,1775766642849,-648.9,0.00019178,18]
[420190424,1775766642858,-536.3025656,0.00019178,18]
[420190426,1775766642867,-1000.0,0.00019178,2]
[420190428,1775766642881,-500.0,0.00019178,18]
[420190430,1775766642926,-500.0,0.00019178,18]
[420190432,1775766642936,-500.0,0.00019178,18]
[420190435,1775766642946,-500.0,0.00019178,18]
[420190437,1775766642959,-500.0,0.00019178,18]
[420190438,1775766642967,-500.0,0.00019178,18]
[420190440,1775766642977,-500.0,0.00019178,18]
[420190443,1775766642999,-2771.98,0.00019178,18]
[420190444,1775766643010,-999.54,0.00019178,18]
[420190446,1775766643018,-500.0,0.00019178,18]
[420190448,1775766643028,-838.45,0.00019178,18]
[420190450,1775766643037,-500.0,0.00019178,18]
[420190452,1775766643048,-500.0,0.00019178,18]
[420190454,1775766643057,-500.0,0.00019178,18]
[420190456,1775766643069,-1899.82,0.00019178,18]
[420190458,1775766643078,-500.0,0.00019178,18]
[420190460,1775766643087,-500.0,0.00019178,7]
[420190462,1775766643097,-500.0,0.00019178,18]
[420190464,1775766643106,-500.0,0.00019178,18]
[420190466,1775766643115,-2235.08,0.00019178,18]
[420190468,1775766643125,-500.0,0.00019178,18]
[420190470,1775766643180,-500.0,0.00019178,18]
[420190473,1775766643190,-912.12,0.00019178,18]
[420190475,1775766643200,-500.0,0.00019178,18]
[420190478,1775766643209,-2544.6,0.00019178,18]
[420190480,1775766643219,-500.0,0.00019178,18]
[420190482,1775766643228,-806.95,0.00019178,18]
[420190484,1775766643237,-1370.28,0.00019178,18]
[420190487,1775766643246,-500.0,0.00019178,18]
[420190489,1775766643255,-1525.55,0.00019178,18]
[420190491,1775766643264,-358.805,0.00019178,18]
[420190493,1775766643274,-500.0,0.00019178,18]
[420190495,1775766643283,-824.45,0.00019178,18]
[420190497,1775766643293,-500.0,0.00019178,18]
[420190499,1775766643307,-550.46,0.00019178,18]
[420190502,1775766643363,-500.0,0.00019178,18]
[420190505,1775766643374,-500.0,0.00019178,18]
[420190508,1775766643385,-500.0,0.00019178,18]
[420190510,1775766643395,-500.0,0.00019178,18]
[420190512,1775766643404,-500.0,0.00019178,18]
[420190515,1775766643414,-500.0,0.00019178,18]
[420190518,1775766643425,-500.0,0.00019178,18]
[420190521,1775766643435,-978.3,0.00019178,18]
[420190525,1775766643444,-500.0,0.00019178,18]
[420190529,1775766643455,-500.0,0.00019178,18]
[420190533,1775766643468,-1172.16,0.00019178,18]
[420190537,1775766643477,-500.0,0.00019178,18]
[420190540,1775766643512,-1515.63,0.00019178,18]
[420190543,1775766643525,-1317.81,0.00019178,18]
[420190546,1775766643534,-500.0,0.00019178,18]
[420190549,1775766643544,-1519.7,0.00019178,18]
[420190550,1775766643556,-500.0,0.00019178,18]
[420190553,1775766643566,-500.0,0.00019178,18]
[420190555,1775766643575,-500.0,0.00019178,18]
[420190557,1775766643589,-500.0,0.00019178,18]
[420190558,1775766643599,-500.0,0.00019178,18]
[420190561,1775766643608,-500.0,0.00019178,18]
[420190563,1775766643618,-1813.31,0.00019178,18]
[420190565,1775766643629,-500.0,0.00019178,18]
[420190567,1775766643638,-500.0,0.00019178,18]
[420190569,1775766643652,-749.15,0.00019178,18]
[420190571,1775766643685,-549.45,0.00019178,18]
[420190573,1775766643695,-500.0,0.00019178,18]
[420190575,1775766643705,-500.0,0.00019178,18]
[420190577,1775766643715,-500.0,0.00019178,18]
[420190579,1775766643725,-500.0,0.00019178,18]
[420190581,1775766643734,-733.2,0.00019178,18]
[420190582,1775766643745,-854.08,0.00019178,18]
[420190585,1775766643763,-500.0,0.00019178,18]
[420190586,1775766643772,-3069.05,0.00019178,18]
[420190588,1775766643783,-500.0,0.00019178,18]
[420190590,1775766643792,-1330.02,0.00019178,18]
[420190592,1775766643801,-904.26,0.00019178,18]
[420190594,1775766643811,-500.0,0.00019178,18]
[420190596,1775766643822,-500.0,0.00019178,18]
[420190598,1775766643854,-500.0,0.00019178,18]
[420190600,1775766643863,-500.0,0.00019178,18]
[420190602,1775766643873,-762.3,0.00019178,18]
[420190604,1775766643883,-955.14,0.00019178,18]
[420190606,1775766643892,-2718.11,0.00019178,18]
[420190608,1775766643901,-500.0,0.00019178,18]
[420190610,1775766643911,-500.0,0.00019178,18]
[420190612,1775766643924,-500.0,0.00019178,18]
[420190614,1775766643950,-500.0,0.00019178,18]
[420190616,1775766643960,-500.0,0.00019178,18]
[420190619,1775766643971,-813.16,0.00019178,18]
[420190620,1775766643980,-1258.82,0.00019178,18]
[420190622,1775766643990,-824.13,0.00019178,18]
[420190624,1775766644000,-500.0,0.00019178,18]
[420190626,1775766644010,-500.0,0.00019178,18]
[420190628,1775766644036,-500.0,0.00019178,18]
[420190630,1775766644057,-746.65,0.00019178,18]
[420190633,1775766644067,-500.0,0.00019178,18]
[420190635,1775766644077,-500.0,0.00019178,18]
[420190637,1775766644087,-1120.76,0.00019178,18]
[420190639,1775766644100,-550.38,0.00019178,18]
[420190641,1775766644118,-500.0,0.00019178,18]
[420190643,1775766644127,-1224.73,0.00019178,18]
[420190645,1775766644137,-500.0,0.00019178,18]
[420190647,1775766644146,-634.40820417,0.00019178,18]
[420190649,1775766644156,-500.0,0.00019178,18]
[420190651,1775766644165,-1188.58,0.00019178,18]
[420190653,1775766644175,-500.0,0.00019178,18]
[420190655,1775766644185,-500.0,0.00019178,18]
[420190657,1775766644195,-1000.0,0.00019178,2]
[420190659,1775766644204,-1267.19,0.00019178,18]
[420190661,1775766644215,-500.0,0.00019178,18]
[420190663,1775766644255,-500.0,0.00019178,18]
[420190665,1775766644264,-500.0,0.00019178,18]
[420190667,1775766644273,-563.99,0.00019178,18]
[420190669,1775766644283,-4209.39,0.00019178,18]
[420190671,1775766644295,-500.0,0.00019178,18]
[420190673,1775766644305,-500.0,0.00019178,18]
[420190675,1775766644318,-500.0,0.00019178,10]
[420190677,1775766644331,-500.0,0.00019178,18]
[420190679,1775766644340,-2877.14,0.00019178,18]
[420190680,1775766644350,-500.0,0.00019178,18]
[420190681,1775766644359,-500.0,0.00019178,18]
[420190682,1775766644369,-500.0,0.00019178,18]
[420190683,1775766644379,-500.0,0.00019178,18]
[420190684,1775766644392,-500.0,0.00019178,18]
[420190685,1775766644416,-500.0,0.00019178,18]
[420190686,1775766644426,-2566.82,0.00019178,18]
[420190687,1775766644436,-681.05,0.00019178,18]
[420190688,1775766644445,-500.0,0.00019178,18]
[420190689,1775766644455,-500.0,0.00019178,18]
[420190690,1775766644465,-500.0,0.00019178,18]
[420190691,1775766644474,-229.22132475,0.00019178,18]
[420190692,1775766644485,-500.0,0.00019178,18]
[420190693,1775766644510,-500.0,0.00019178,18]
[420190694,1775766644519,-2272.87,0.00019178,18]
[420190695,1775766644529,-500.0,0.00019178,18]
[420190696,1775766644538,-500.0,0.00019178,18]
[420190697,1775766644548,-726.02,0.00019178,18]
[420190698,1775766644557,-500.0,0.00019178,18]
[420190699,1775766644567,-500.0,0.00019178,18]
[420190700,1775766644596,-500.0,0.00019178,18]
[420190701,1775766644608,-500.0,0.00019178,18]
[420190702,1775766644617,-500.0,0.00019178,18]
[420190703,1775766644626,-500.0,0.00019178,18]
[420190704,1775766644635,-500.0,0.00019178,18]
[420190705,1775766644644,-370.06194425,0.00019178,18]
[420190706,1775766644652,-1369.46,0.00019178,18]
[420190707,1775766644661,-660.23,0.00019178,18]
[420190708,1775766644675,-500.0,0.00019178,18]
[420190709,1775766644696,-500.0,0.00019178,18]
[420190710,1775766644705,-1451.36,0.00019178,18]
[420190711,1775766644714,-500.0,0.00019178,18]
[420190712,1775766644723,-500.0,0.00019178,18]
[420190713,1775766644732,-834.78,0.00019178,18]
[420190714,1775766644742,-500.0,0.00019178,18]
[420190715,1775766644750,-535.65,0.00019178,18]
[420190716,1775766644760,-6193.33,0.00019178,18]
[420190717,1775766644787,-500.0,0.00019178,18]
[420190718,1775766644796,-500.0,0.00019178,18]
[420190719,1775766644805,-500.0,0.00019178,18]
[420190720,1775766644814,-631.3930405,0.00019178,18]
[420190721,1775766644823,-535.43,0.00019178,18]
[420190722,1775766644833,-882.45,0.00019178,18]
[420190723,1775766644842,-500.0,0.00019178,18]
[420190724,1775766644863,-4868.55,0.00019178,18]
[420190725,1775766644905,-500.0,0.00019178,18]
[420190726,1775766644914,-1814.94,0.00019178,18]
[420190727,1775766644924,-500.0,0.00019178,18]
[420190728,1775766644933,-500.0,0.00019178,18]
[420190729,1775766644944,-662.26,0.00019178,18]
[420190730,1775766644955,-500.0,0.00019178,18]
[420190731,1775766644969,-946.89,0.00019178,18]
[420190732,1775766644977,-500.0,0.00019178,18]
[420190733,1775766644986,-500.0,0.00019178,18]
[420190734,1775766644999,-500.0,0.00019178,18]
[420190735,1775766645008,-3445.23,0.00019178,18]
[420190736,1775766645017,-500.0,0.00019178,18]
[420190737,1775766645036,-500.0,0.00019178,18]
[420190738,1775766645045,-500.0,0.00019178,18]
[420190739,1775766645054,-829.97,0.00019178,18]
[420190740,1775766645064,-500.0,0.00019178,18]
[420190741,1775766645073,-526.24,0.00019178,18]
[420190742,1775766645082,-3068.48,0.00019178,18]
[420190743,1775766645091,-500.0,0.00019178,18]
[420190744,1775766645122,-500.0,0.00019178,18]
[420190745,1775766645132,-936.3,0.00019178,18]
[420190746,1775766645140,-500.0,0.00019178,18]
[420190747,1775766645149,-895.72,0.00019178,18]
[420190748,1775766645158,-500.0,0.00019178,18]
[420190749,1775766645167,-614.65,0.00019178,18]
[420190750,1775766645175,-500.0,0.00019178,18]
[420190751,1775766645185,-500.0,0.00019178,18]
[420190752,1775766645194,-500.0,0.00019178,18]
[420190753,1775766645203,-500.0,0.00019178,18]
[420190754,1775766645212,-500.0,0.00019178,18]
[420190755,1775766645222,-553.33309252,0.00019178,18]
[420190756,1775766645231,-1146.61,0.00019178,18]
[420190757,1775766645240,-500.0,0.00019178,18]
[420190758,1775766645250,-4391.38,0.00019178,18]
[420190759,1775766645259,-500.0,0.00019178,18]
[420190760,1775766645268,-500.0,0.00019178,18]
[420190761,1775766645277,-500.0,0.00019178,18]
[420190762,1775766645300,-500.0,0.00019178,10]
[420190763,1775766645313,-562.43,0.00019178,18]
[420190765,1775766645322,-500.0,0.00019178,18]
[420190766,1775766645331,-1959.62,0.00019178,18]
[420190768,1775766645340,-672.44,0.00019178,18]
[420190770,1775766645349,-500.0,0.00019178,18]
[420190772,1775766645357,-823.87,0.00019178,18]
[420190774,1775766645366,-500.0,0.00019178,18]
[420190776,1775766645401,-500.0,0.00019178,18]
[420190778,1775766645412,-500.0,0.00019178,18]
[420190780,1775766645421,-500.0,0.00019178,18]
[420190782,1775766645431,-500.0,0.00019178,18]
[420190784,1775766645441,-500.0,0.00019178,18]
[420190786,1775766645453,-500.0,0.00019178,18]
[420190788,1775766645462,-567.98,0.00019178,2]
[420190790,1775766645504,-1414.24,0.00019178,18]
[420190792,1775766645532,-2772.16,0.00019178,18]
[420190794,1775766645542,-500.0,0.00019178,18]
[420190796,1775766645561,-500.0,0.00019178,18]
[420190798,1775766645570,-3885.4,0.00019178,18]
[420190800,1775766645610,-500.0,0.00019178,18]
[420190802,1775766645626,-685.82,0.00019178,18]
[420190804,1775766645635,-3710.64,0.00019178,18]
[420190805,1775766645644,-632.91661601,0.00019178,18]
[420190807,1775766645657,-500.0,0.00019178,18]
[420190809,1775766645666,-500.0,0.00019178,18]
[420190811,1775766645676,-500.0,0.00019178,18]
[420190813,1775766645685,-534.61,0.00019178,18]
[420190815,1775766645697,-500.0,0.00019178,18]
[420190817,1775766645711,-1416.98,0.00019178,18]
[420190819,1775766645720,-500.0,0.00019178,18]
[420190821,1775766645729,-500.0,0.00019178,18]
[420190823,1775766645738,-500.0,0.00019178,18]
[420190825,1775766645748,-530.9402608,0.00019178,18]
[420190827,1775766645757,-1493.89,0.00019178,18]
[420190828,1775766645766,-500.0,0.00019178,18]
[420190830,1775766645775,-500.0,0.00019178,18]
[420190832,1775766645785,-708.81,0.00019178,18]
[420190834,1775766645794,-500.0,0.00019178,18]
[420190836,1775766645803,-187.53451619,0.00019178,18]
[420190839,1775766645813,-500.0,0.00019178,18]
[420190840,1775766645823,-500.0,0.00019178,18]
[420190842,1775766645832,-500.0,0.00019178,18]
[420190844,1775766645842,-500.0,0.00019178,18]
[420190846,1775766645852,-1287.09,0.00019178,18]
[420190848,1775766645861,-2674.21,0.00019178,18]
[420190850,1775766645874,-400.78194402,0.00019178,18]
[420190853,1775766645898,-500.0,0.00019178,18]
[420190855,1775766645908,-1078.72,0.00019178,18]
[420190856,1775766645918,-754.28,0.00019178,18]
[420190858,1775766645927,-500.0,0.00019178,18]
[420190860,1775766645936,-500.0,0.00019178,18]
[420190862,1775766645947,-548.64,0.00019178,18]
[420190864,1775766645956,-500.0,0.00019178,18]
[420190866,1775766645985,-1305.51,0.00019178,18]
[420190868,1775766645994,-744.62,0.00019178,18]
[420190870,1775766646004,-637.7,0.00019178,18]
[420190872,1775766646013,-500.0,0.00019178,18]
[420190874,1775766646022,-832.3,0.00019178,18]
[420190876,1775766646033,-4558.28,0.00019178,18]
[420190878,1775766646042,-500.0,0.00019178,18]
[420190880,1775766646066,-500.0,0.00019178,18]
[420190882,1775766646075,-500.0,0.00019178,18]
[420190884,1775766646085,-500.0,0.00019178,18]
[420190886,1775766646094,-570.18,0.00019178,18]
[420190888,1775766646103,-500.0,0.00019178,18]
[420190889,1775766646112,-500.0,0.00019178,18]
[420190890,1775766646122,-500.0,0.00019178,18]
[420190891,1775766646153,-500.0,0.00019178,18]
[420190892,1775766646162,-500.0,0.00019178,18]
[420190893,1775766646171,-500.0,0.00019178,18]
[420190894,1775766646180,-500.0,0.00019178,18]
[420190895,1775766646190,-500.0,0.00019178,18]
[420190896,1775766646199,-500.0,0.00019178,18]
[420190897,1775766646208,-1238.51,0.00019178,18]
[420190898,1775766646220,-500.0,0.00019178,18]
[420190899,1775766646255,-500.0,0.00019178,18]
[420190900,1775766646264,-500.0,0.00019178,18]
[420190901,1775766646273,-500.0,0.00019178,18]
[420190902,1775766646287,-293.35343501,0.00019178,18]
[420190903,1775766646295,-4694.49,0.00019178,18]
[420190904,1775766646305,-590.05,0.00019178,18]
[420190905,1775766646324,-500.0,0.00019178,18]
[420190906,1775766646333,-500.0,0.00019178,18]
[420190907,1775766646343,-985.9,0.00019178,18]
[420190908,1775766646353,-977.31,0.00019178,18]
[420190909,1775766646362,-500.0,0.00019178,18]
[420190910,1775766646371,-2267.05,0.00019178,18]
[420190911,1775766646381,-1858.85,0.00019178,18]
[420190912,1775766646409,-1003.71,0.00019178,18]
[420190913,1775766646419,-500.0,0.00019178,18]
[420190914,1775766646428,-500.0,0.00019178,11]